fUSD/lending_fUSD_20250530
["ID","MTS","AMOUNT","RATE_DAILY","PERIOD"]
[363088133,1748573439808,-910.34,0.00021917,2]
[363088136,1748573439819,-420.0,0.00021917,2]
[363088139,1748573439829,-568.22,0.00021917,2]
[363088142,1748573439838,-300.0,0.00021917,2]
[363088145,1748573439848,-2035.57,0.00021917,2]
[363088148,1748573439857,-420.0,0.00021917,2]
[363088151,1748573439866,-420.6,0.00021917,2]
[363088154,1748573439875,-622.36,0.00021917,2]
[363088157,1748573439884,-420.0,0.00021917,2]
[363088160,1748573439894,-616.61,0.00021917,2]
[363088163,1748573439903,-420.0,0.00021917,2]
[363088166,1748573439912,-519.05,0.00021917,2]
[363088169,1748573439922,-534.46,0.00021917,2]
[363088172,1748573439931,-426.48704627,0.00021917,2]
[363088175,1748573439941,-2272.56,0.00021917,2]
[363088178,1748573439950,-4630.69,0.00021917,2]
[363088181,1748573439959,-940.92,0.00021917,2]
[363088184,1748573439968,-1056.39,0.00021917,2]
[363088187,1748573439978,-420.0,0.00021917,2]
[363088190,1748573439987,-420.0,0.00021917,2]
[363088193,1748573439997,-420.0,0.00021917,2]
[363088195,1748573440006,-1694.52,0.00021917,2]
[363088198,1748573440015,-161.33539009,0.00021917,2]
[363088201,1748573440025,-1490.98,0.00021917,2]
[363088204,1748573440035,-1354.82,0.00021917,2]
[363088207,1748573440044,-420.0,0.00021917,2]
[363088210,1748573440054,-420.0,0.00021917,2]
[363088214,1748573440067,-420.0,0.00021917,2]
[363088217,1748573440076,-476.81,0.00021917,2]
[363088220,1748573440085,-250.0,0.00021917,2]
[363088223,1748573440094,-420.0,0.00021917,2]
[363088226,1748573440104,-470.65,0.00021917,2]
[363088229,1748573440113,-500.0,0.00021917,2]
[363088231,1748573440121,-500.0,0.00021917,2]
[363088234,1748573440131,-754.64,0.00021917,2]
[363088236,1748573440140,-500.0,0.00021917,2]
[363088239,1748573440150,-654.58,0.00021917,2]
[363088242,1748573440159,-423.25713649,0.00021917,2]
[363088245,1748573440168,-420.0,0.00021917,2]
[363088247,1748573440178,-420.0,0.00021917,2]
[363088249,1748573440187,-1727.1,0.00021917,2]
[363088251,1748573440196,-13280.21,0.00021917,2]
[363088253,1748573440205,-420.0,0.00021917,2]
[363088255,1748573440214,-1620.87,0.00021917,2]
[363088258,1748573440224,-507.48,0.00021917,2]
[363088261,1748573440234,-420.0,0.00021917,2]
[363088264,1748573440243,-420.0,0.00021917,2]
[363088267,1748573440252,-466.9,0.00021917,2]
[363088270,1748573440261,-420.0,0.00021917,2]
[363088273,1748573440271,-589.0316931,0.00021917,2]
[363088275,1748573440281,-420.0,0.00021917,2]
[363088277,1748573440291,-420.0,0.00021917,2]
[363088279,1748573440300,-420.0,0.00021917,2]
[363088281,1748573440312,-4634.63,0.00021917,2]
[363088283,1748573440321,-2100.17,0.00021917,2]
[363088285,1748573440331,-420.0,0.00021917,2]
[363088287,1748573440340,-420.0,0.00021917,2]
[363088289,1748573440350,-420.0,0.00021917,2]
[363088291,1748573440359,-420.0,0.00021917,2]
[363088293,1748573440369,-824.48,0.00021917,2]
[363088295,1748573440378,-561.93,0.00021917,2]
[363088297,1748573440388,-671.39,0.00021917,2]
[363088299,1748573440397,-938.38,0.00021917,2]
[363088301,1748573440407,-420.0,0.00021917,2]
[363088303,1748573440416,-1007.54,0.00021917,2]
[363088306,1748573440425,-442.58,0.00021917,2]
[363088308,1748573440434,-423.9695446,0.00021917,2]
[363088311,1748573440443,-448.79,0.00021917,2]
[363088314,1748573440453,-420.81782095,0.00021917,2]
[363088317,1748573440462,-420.0,0.00021917,2]
[363088320,1748573440472,-1484.5,0.00021917,2]
[363088323,1748573440482,-420.0,0.00021917,2]
[363088326,1748573440491,-687.93,0.00021917,2]
[363088329,1748573440500,-420.0,0.00021917,2]
[363088332,1748573440510,-420.0,0.00021917,2]
[363088335,1748573440519,-420.0,0.00021917,2]
[363088338,1748573440530,-431.88,0.00021917,2]
[363088341,1748573440539,-420.0,0.00021917,2]
[363088344,1748573440549,-438.34,0.00021917,2]
[363088347,1748573440558,-500.0,0.00021917,2]
[363088350,1748573440568,-453.03,0.00021917,2]
[363088354,1748573440577,-6138.12,0.00021917,2]
[363088357,1748573440587,-6766.41,0.00021917,2]
[363088360,1748573440597,-420.0,0.00021917,2]
[363088363,1748573440606,-423.51198702,0.00021917,2]
[363088366,1748573440617,-5099.57,0.00021917,2]
[363088369,1748573440626,-833.61,0.00021917,2]
[363088372,1748573440635,-420.0,0.00021917,2]
[363088374,1748573440645,-420.0,0.00021917,2]
[363088377,1748573440655,-420.0,0.00021917,2]
[363088381,1748573440664,-420.0,0.00021917,2]
[363088383,1748573440673,-423.89044866,0.00021917,2]
[363088386,1748573440682,-478.39,0.00021917,2]
[363088389,1748573440692,-2931.99,0.00021917,2]
[363088392,1748573440701,-420.0,0.00021917,2]
[363088395,1748573440710,-542.95,0.00021917,2]
[363088398,1748573440719,-903.69,0.00021917,2]
[363088401,1748573440728,-1455.56,0.00021917,2]
[363088404,1748573440738,-422.71748708,0.00021917,2]
[363088407,1748573440746,-420.0,0.00021917,2]
[363088410,1748573440757,-423.58154009,0.00021917,2]
[363088414,1748573440768,-3448.76,0.00021917,2]
[363088417,1748573440777,-1543.01,0.00021917,2]
[363088419,1748573440787,-420.0,0.00021917,2]
[363088423,1748573440797,-420.0,0.00021917,2]
[363088425,1748573440807,-3211.81,0.00021917,2]
[363088428,1748573440816,-1762.33,0.00021917,2]
[363088431,1748573440825,-1394.58,0.00021917,2]
[363088435,1748573440834,-2813.07,0.00021917,2]
[363088438,1748573440845,-420.0,0.00021917,2]
[363088441,1748573440854,-424.87117307,0.00021917,2]
[363088443,1748573440863,-420.0,0.00021917,2]
[363088446,1748573440873,-1773.42,0.00021917,2]
[363088450,1748573440883,-420.0,0.00021917,2]
[363088453,1748573440893,-420.0,0.00021917,2]
[363088457,1748573440903,-2030.28,0.00021917,2]
[363088459,1748573440913,-420.0,0.00021917,2]
[363088462,1748573440923,-1264.64,0.00021917,2]
[363088465,1748573440932,-420.0,0.00021917,2]
[363088466,1748573440941,-420.0,0.00021917,2]
[363088469,1748573440951,-638.17,0.00021917,2]
[363088471,1748573440961,-420.0,0.00021917,2]
[363088473,1748573440970,-420.0,0.00021917,2]
[363088475,1748573440980,-423.33897446,0.00021917,2]
[363088478,1748573440989,-420.0,0.00021917,2]
[363088480,1748573440998,-424.14938476,0.00021917,2]
[363088483,1748573441007,-897.51,0.00021917,2]
[363088486,1748573441017,-420.0,0.00021917,2]
[363088488,1748573441027,-815.77,0.00021917,2]
[363088491,1748573441039,-420.0,0.00021917,2]
[363088494,1748573441051,-768.51,0.00021917,2]
[363088497,1748573441064,-423.65739007,0.00021917,2]
[363088500,1748573441074,-420.0,0.00021917,2]
[363088503,1748573441084,-420.0,0.00021917,2]
[363088506,1748573441094,-1085.79,0.00021917,2]
[363088509,1748573441106,-420.0,0.00021917,2]
[363088512,1748573441117,-420.0,0.00021917,2]
[363088515,1748573441126,-1000.6,0.00021917,2]
[363088517,1748573441135,-420.0,0.00021917,2]
[363088520,1748573441149,-399.98925697,0.00021917,2]
[363088523,1748573441160,-420.0,0.00021917,2]
[363088526,1748573441171,-420.0,0.00021917,2]
[363088529,1748573441180,-422.6909617,0.00021917,2]
[363088532,1748573441190,-1396.3,0.00021917,2]
[363088535,1748573441199,-420.0,0.00021917,2]
[363088538,1748573441208,-420.0,0.00021917,2]
[363088541,1748573441218,-420.0,0.00021917,2]
[363088544,1748573441228,-528.34689353,0.00021917,2]
[363088547,1748573441238,-420.0,0.00021917,2]
[363088550,1748573441247,-1582.03,0.00021917,2]
[363088553,1748573441257,-1024.95,0.00021917,2]
[363088556,1748573441267,-420.0,0.00021917,2]
[363088559,1748573441277,-420.0,0.00021917,2]
[363088562,1748573441291,-5404.67,0.00021917,2]
[363088565,1748573441301,-4020.23,0.00021917,2]
[363088568,1748573441311,-2077.43,0.00021917,2]
[363088571,1748573441320,-2146.94,0.00021917,2]
[363088574,1748573441329,-420.0,0.00021917,2]
[363088577,1748573441338,-1526.89,0.00021917,2]
[363088580,1748573441348,-420.0,0.00021917,2]
[363088583,1748573441357,-420.0,0.00021917,2]
[363088586,1748573441367,-420.0,0.00021917,2]
[363088589,1748573441377,-600.55,0.00021917,2]
[363088592,1748573441387,-420.0,0.00021917,2]
[363088595,1748573441396,-4903.39,0.00021917,2]
[363088597,1748573441406,-420.0,0.00021917,2]
[363088600,1748573441416,-420.0,0.00021917,2]
[363088603,1748573441425,-420.0,0.00021917,2]
[363088606,1748573441434,-1037.47,0.00021917,2]
[363088609,1748573441444,-2853.41,0.00021917,2]
[363088612,1748573441454,-420.0,0.00021917,2]
[363088615,1748573441463,-420.0,0.00021917,2]
[363088618,1748573441472,-509.19,0.00021917,2]
[363088621,1748573441481,-420.0,0.00021917,2]
[363088624,1748573441491,-1405.96,0.00021917,2]
[363088627,1748573441500,-420.0,0.00021917,2]
[363088630,1748573441509,-678.22,0.00021917,2]
[363088633,1748573441518,-1132.87,0.00021917,2]
[363088636,1748573441528,-420.0,0.00021917,2]
[363088639,1748573441540,-4392.74,0.00021917,2]
[363088642,1748573441550,-420.0,0.00021917,2]
[363088645,1748573441558,-606.35,0.00021917,2]
[363088648,1748573441567,-1556.01,0.00021917,2]
[363088650,1748573441577,-821.6,0.00021917,2]
[363088653,1748573441585,-1356.02,0.00021917,2]
[363088656,1748573441594,-420.0,0.00021917,2]
[363088659,1748573441604,-420.0,0.00021917,2]
[363088662,1748573441613,-4152.58,0.00021917,2]
[363088664,1748573441623,-1331.05,0.00021917,2]
[363088667,1748573441632,-1255.82,0.00021917,2]
[363088670,1748573441642,-420.0,0.00021917,2]
[363088673,1748573441652,-447.32,0.00021917,2]
[363088676,1748573441662,-420.0,0.00021917,2]
[363088679,1748573441671,-420.0,0.00021917,2]
[363088681,1748573441681,-1120.64,0.00021917,2]
[363088683,1748573441691,-420.0,0.00021917,2]
[363088685,1748573441700,-420.0,0.00021917,2]
[363088687,1748573441708,-2953.68,0.00021917,2]
[363088690,1748573441718,-430.35,0.00021917,2]
[363088693,1748573441727,-420.0,0.00021917,2]
[363088696,1748573441736,-682.18,0.00021917,2]
[363088699,1748573441746,-420.0,0.00021917,2]
[363088702,1748573441755,-420.0,0.00021917,2]
[363088705,1748573441764,-6150.8,0.00021917,2]
[363088708,1748573441774,-420.0,0.00021917,2]
[363088711,1748573441784,-434.10497327,0.00021917,2]
[363088714,1748573441794,-801.48,0.00021917,2]
[363088717,1748573441803,-420.0,0.00021917,2]
[363088720,1748573441812,-2088.71,0.00021917,2]
[363088723,1748573441821,-792.51,0.00021917,2]
[363088726,1748573441831,-420.0,0.00021917,2]
[363088729,1748573441840,-3171.2,0.00021917,2]
[363088732,1748573441849,-420.0,0.00021917,2]
[363088735,1748573441858,-420.0,0.00021917,2]
[363088738,1748573441867,-480.42,0.00021917,2]
[363088741,1748573441876,-420.0,0.00021917,2]
[363088744,1748573441886,-301.39696546,0.00021917,2]
[363088746,1748573441895,-420.0,0.00021917,2]
[363088749,1748573441904,-420.0,0.00021917,2]
[363088752,1748573441914,-422.82865184,0.00021917,2]
[363088755,1748573441923,-421.34774729,0.00021917,2]
[363088758,1748573441931,-1064.98,0.00021917,2]
[363088761,1748573441942,-1050.12,0.00021917,2]
[363088764,1748573441951,-420.0,0.00021917,2]
[363088767,1748573441960,-739.37,0.00021917,2]
[363088770,1748573441970,-420.0,0.00021917,2]
[363088773,1748573441979,-1673.04,0.00021917,2]
[363088776,1748573441988,-577.28,0.00021917,2]
[363088779,1748573441998,-3129.5,0.00021917,2]
[363088781,1748573442007,-14975.78,0.00021917,2]
[363088784,1748573442017,-384.26102344,0.00021917,2]
[363088787,1748573442026,-420.0,0.00021917,2]
[363088790,1748573442041,-421.45834304,0.00021917,2]
[363088793,1748573442060,-705.19,0.00021917,2]
[363088796,1748573442077,-3801.2,0.00021917,2]
[363088799,1748573442086,-420.0,0.00021917,2]
[363088802,1748573442095,-420.0,0.00021917,2]
[363088805,1748573442106,-3029.72,0.00021917,2]
[363088808,1748573442115,-1599.38,0.00021917,2]
[363088811,1748573442124,-420.0,0.00021917,2]
[363088814,1748573442134,-420.0,0.00021917,2]
[363088817,1748573442143,-1114.17,0.00021917,2]
[363088820,1748573442153,-7295.09,0.00021917,2]
[363088823,1748573442163,-4257.51,0.00021917,2]
[363088826,1748573442172,-420.0,0.00021917,2]
[363088829,1748573442182,-420.0,0.00021917,2]
[363088832,1748573442192,-420.0,0.00021917,2]
[363088835,1748573442202,-722.17,0.00021917,2]
[363088838,1748573442211,-422.93,0.00021917,2]
[363088841,1748573442220,-420.0,0.00021917,2]
[363088844,1748573442229,-420.0,0.00021917,2]
[363088847,1748573442238,-425.740575,0.00021917,2]
[363088850,1748573442248,-428.5845087,0.00021917,2]
[363088853,1748573442256,-421.75587265,0.00021917,2]
[363088855,1748573442266,-420.0,0.00021917,2]
[363088858,1748573442275,-1632.71,0.00021917,2]
[363088861,1748573442285,-1040.5,0.00021917,2]
[363088864,1748573442294,-770.82,0.00021917,2]
[363088866,1748573442303,-1263.84,0.00021917,2]
[363088868,1748573442312,-2608.92,0.00021917,2]
[363088870,1748573442323,-792.91,0.00021917,2]
[363088872,1748573442332,-420.0,0.00021917,2]
[363088874,1748573442341,-9184.18,0.00021917,2]
[363088876,1748573442350,-420.0,0.00021917,2]
[363088878,1748573442360,-642.39,0.00021917,2]
[363088880,1748573442369,-3327.77,0.00021917,2]
[363088882,1748573442378,-475.64,0.00021917,2]
[363088884,1748573442387,-420.0,0.00021917,2]
[363088886,1748573442396,-420.0,0.00021917,2]
[363088888,1748573442405,-362.58409854,0.00021917,2]
[363088890,1748573442415,-703.78,0.00021917,2]
[363088892,1748573442423,-420.0,0.00021917,2]
[363088894,1748573442432,-420.0,0.00021917,2]
[363088896,1748573442441,-420.0,0.00021917,2]
[363088898,1748573442450,-512.25843226,0.00021917,2]
[363088900,1748573442459,-420.0,0.00021917,2]
[363088902,1748573442469,-420.0,0.00021917,2]
[363088903,1748573442483,-1163.83,0.00021917,2]
[363088905,1748573442494,-420.0,0.00021917,2]
[363088907,1748573442504,-481.57,0.00021917,2]
[363088909,1748573442515,-437.9208261,0.00021917,2]
[363088911,1748573442525,-223.89487434,0.00021917,2]
[363088913,1748573442535,-503.38,0.00021917,2]
[363088915,1748573442544,-2016.32,0.00021917,2]
[363088917,1748573442553,-420.0,0.00021917,2]
[363088919,1748573442563,-530.37,0.00021917,2]
[363088921,1748573442572,-12521.24,0.00021917,2]
[363088923,1748573442582,-420.0,0.00021917,2]
[363088925,1748573442590,-400.35019969,0.00021917,2]
[363088927,1748573442600,-420.0,0.00021917,2]
[363088929,1748573442610,-420.0,0.00021917,2]
[363088931,1748573442621,-420.0,0.00021917,2]
[363088935,1748573442630,-420.0,0.00021917,2]
[363088938,1748573442640,-442.23,0.00021917,2]
[363088941,1748573442649,-420.0,0.00021917,2]
[363088944,1748573442659,-420.0,0.00021917,2]
[363088946,1748573442668,-1259.29,0.00021917,2]
[363088948,1748573442678,-420.0,0.00021917,2]
[363088950,1748573442688,-6293.17,0.00021917,2]
[363088952,1748573442697,-3621.11,0.00021917,2]
[363088955,1748573442708,-420.57,0.00021917,2]
[363088958,1748573442717,-422.08760173,0.00021917,2]
[363088961,1748573442727,-665.64,0.00021917,2]
[363088964,1748573442737,-420.0,0.00021917,2]
[363088967,1748573442746,-1556.78,0.00021917,2]
[363088969,1748573442755,-420.0,0.00021917,2]
[363088972,1748573442765,-420.0,0.00021917,2]
[363088975,1748573442774,-423.88227602,0.00021917,2]
[363088978,1748573442784,-522.74,0.00021917,2]
[363088981,1748573442792,-2802.72,0.00021917,2]
[363088984,1748573442801,-575.42,0.00021917,2]
[363088987,1748573442810,-420.0,0.00021917,2]
[363088990,1748573442820,-682.09,0.00021917,2]
[363088993,1748573442829,-420.0,0.00021917,2]
[363088996,1748573442838,-420.0,0.00021917,2]
[363088999,1748573442847,-420.0,0.00021917,2]
[363089001,1748573442857,-420.0,0.00021917,2]
[363089003,1748573442867,-1129.37,0.00021917,2]
[363089004,1748573442875,-1183.53,0.00021917,2]
[363089005,1748573442885,-420.0,0.00021917,2]
[363089006,1748573442894,-420.0,0.00021917,2]
[363089007,1748573442903,-447.26476444,0.00021917,2]
[363089008,1748573442911,-420.0,0.00021917,2]
[363089009,1748573442921,-420.0,0.00021917,2]
[363089010,1748573442930,-161405.6,0.00021917,2]
[363089029,1748573443154,-420.0,0.00021917,2]
[363089031,1748573443164,-420.0,0.00021917,2]
[363089033,1748573443174,-1010.77,0.00021917,2]
[363089035,1748573443183,-1483.97,0.00021917,2]
[363089037,1748573443193,-1403.42,0.00021917,2]
[363089039,1748573443202,-420.0,0.00021917,2]
[363089041,1748573443211,-420.0,0.00021917,2]
[363089043,1748573443220,-420.0,0.00021917,2]
[363089045,1748573443230,-420.0,0.00021917,2]
[363089047,1748573443239,-1520.98,0.00021917,2]
[363089049,1748573443248,-420.0,0.00021917,2]
[363089051,1748573443257,-420.0,0.00021917,2]
[363089053,1748573443267,-1067.0,0.00021917,2]
[363089055,1748573443276,-485.2856501,0.00021917,2]
[363089057,1748573443287,-429.67262733,0.00021917,2]
[363089059,1748573443297,-4190.17,0.00021917,2]
[363089061,1748573443306,-3846.12,0.00021917,2]
[363089063,1748573443315,-420.0,0.00021917,2]
[363089065,1748573443325,-420.0,0.00021917,2]
[363089067,1748573443334,-500.0,0.00021917,2]
[363089069,1748573443344,-420.0,0.00021917,2]
[363089071,1748573443354,-2793.05,0.00021917,2]
[363089073,1748573443364,-1711.83,0.00021917,2]
[363089075,1748573443373,-1287.86,0.00021917,2]
[363089077,1748573443383,-420.0,0.00021917,2]
[363089079,1748573443393,-426.6595569,0.00021917,2]
[363089082,1748573443403,-906.82,0.00021917,2]
[363089084,1748573443412,-789.32,0.00021917,2]
[363089085,1748573443421,-459.20796681,0.00021917,2]
[363089088,1748573443431,-338.88227532,0.00021917,2]
[363089091,1748573443440,-420.0,0.00021917,2]
[363089094,1748573443451,-561.14,0.00021917,2]
[363089096,1748573443460,-420.0,0.00021917,2]
[363089098,1748573443470,-420.0,0.00021917,2]
[363089100,1748573443480,-685.56,0.00021917,2]
[363089102,1748573443489,-422.08378836,0.00021917,2]
[363089104,1748573443499,-6441.14,0.00021917,2]
[363089106,1748573443510,-420.0,0.00021917,2]
[363089108,1748573443520,-420.0,0.00021917,2]
[363089110,1748573443530,-8648.76,0.00021917,2]
[363089112,1748573443542,-420.0,0.00021917,2]
[363089114,1748573443551,-156.65210889,0.00021917,2]
[363089116,1748573443561,-420.0,0.00021917,2]
[363089118,1748573443570,-420.0,0.00021917,2]
[363089120,1748573443579,-447.36,0.00021917,2]
[363089122,1748573443588,-420.0,0.00021917,2]
[363089124,1748573443598,-885.35,0.00021917,2]
[363089127,1748573443609,-1837.55,0.00021917,2]
[363089129,1748573443618,-1172.02,0.00021917,2]
[363089131,1748573443628,-432.87682311,0.00021917,2]
[363089133,1748573443637,-420.0,0.00021917,2]
[363089135,1748573443647,-8375.12,0.00021917,2]
[363089137,1748573443656,-420.0,0.00021917,2]
[363089139,1748573443666,-420.0,0.00021917,2]
[363089141,1748573443675,-1340.89,0.00021917,2]
[363089143,1748573443685,-267.75228245,0.00021917,2]
[363089145,1748573443694,-2870.4,0.00021917,2]
[363089147,1748573443703,-420.0,0.00021917,2]
[363089149,1748573443713,-420.0,0.00021917,2]
[363089151,1748573443722,-420.0,0.00021917,2]
[363089153,1748573443731,-428.78,0.00021917,2]
[363089155,1748573443741,-420.0,0.00021917,2]
[363089157,1748573443750,-426.07047452,0.00021917,2]
[363089159,1748573443759,-420.0,0.00021917,2]
[363089161,1748573443768,-420.0,0.00021917,2]
[363089163,1748573443778,-420.0,0.00021917,2]
[363089165,1748573443789,-420.0,0.00021917,2]
[363089167,1748573443798,-420.0,0.00021917,2]
[363089169,1748573443807,-202.46800861,0.00021918,2]
[363089171,1748573443817,-500.0,0.00021918,2]
[363089173,1748573443826,-500.0,0.00021918,2]
[363089175,1748573443835,-500.0,0.00021918,2]
[363089177,1748573443845,-500.0,0.00021918,2]
[363089179,1748573443854,-500.0,0.00021918,2]
[363089181,1748573443863,-500.0,0.00021918,2]
[363089183,1748573443873,-500.0,0.00021918,2]
[363089185,1748573443882,-500.0,0.00021918,2]
[363089187,1748573443892,-500.0,0.00021918,2]
[363089189,1748573443901,-500.0,0.00021918,2]
[363089191,1748573443911,-500.0,0.00021918,2]
[363089193,1748573443920,-500.0,0.00021918,2]
[363089195,1748573443929,-500.0,0.00021918,2]
[363089197,1748573443938,-500.0,0.00021918,2]
[363089199,1748573443948,-500.0,0.00021918,2]
[363089201,1748573443957,-500.0,0.00021918,2]
[363089203,1748573443967,-500.0,0.00021918,2]
[363089205,1748573443976,-308.19593632,0.00021918,2]
[363089207,1748573443986,-500.0,0.00021918,2]
[363089209,1748573443995,-500.0,0.00021918,2]
[363089211,1748573444005,-5098.93869734,0.00021938,2]
[363089213,1748573444014,-2220.64100359,0.00021938,2]
[363089215,1748573444024,-1200.0,0.00021942,2]
[363089217,1748573444034,-1300.0,0.00021942,2]
[363089219,1748573444044,-500.0,0.00021942,2]
[363089221,1748573444054,-720.91665,0.0002197,2]
[363089223,1748573444065,-502.64478308,0.00021973,2]
[363089225,1748573444075,-151.0,0.00021973,7]
[363089227,1748573444085,-502.31434563,0.00021989,2]
[363089229,1748573444094,-500.0,0.00021989,2]
[363089231,1748573444103,-5098.93869734,0.00021999,2]
[363089233,1748573444115,-990.59,0.00021999,2]
[363089235,1748573444124,-2220.64100359,0.00021999,2]
[363089237,1748573444134,-164.09706187,0.00022013,2]
[363089239,1748573444146,-200.0,0.00022014,2]
[363089241,1748573444155,-1613.0,0.00022055,2]
[363089243,1748573444167,-819.43,0.00022055,2]
[363089245,1748573444176,-5098.93869734,0.00022059,2]
[363089248,1748573444186,-2220.64100359,0.0002206,2]
[363089250,1748573444195,-690.23827691,0.00022087,2]
[363089252,1748573444205,-1022.0,0.000221,2]
[363089254,1748573444214,-5098.93869734,0.0002212,2]
[363089255,1748573444224,-2220.64100359,0.0002212,2]
[363089258,1748573444234,-179.0,0.00022164,2]
[363089260,1748573444243,-151.14617017,0.00022167,2]
[363089262,1748573444253,-500.46210112,0.00022173,2]
[363089264,1748573444262,-500.0,0.00022173,2]
[363089266,1748573444272,-500.0,0.00022173,2]
[363089268,1748573444281,-500.0,0.00022173,2]
[363089270,1748573444292,-507.08647826,0.00022173,2]
[363089272,1748573444302,-500.0,0.00022173,2]
[363089274,1748573444311,-568.58034068,0.00022173,2]
[363089276,1748573444320,-500.0,0.00022173,2]
[363089278,1748573444330,-207.73433368,0.00022175,2]
[363089280,1748573444339,-303.13,0.0002218,2]
[363089282,1748573444348,-300.73,0.0002218,2]
[363089284,1748573444358,-305.43,0.0002218,2]
[363089286,1748573444367,-301.43,0.0002218,2]
[363089288,1748573444376,-301.7,0.0002218,2]
[363089290,1748573444386,-5098.93869734,0.0002218,2]
[363089292,1748573444395,-2220.64100359,0.00022181,2]
[363089294,1748573444404,-80280.9243488,0.00022181,2]
[363089296,1748573444414,-11920.5606223,0.00022181,2]
[363089298,1748573444423,-23059.1068204,0.00022181,2]
[363089300,1748573444433,-113008.86410739,0.00022185,2]
[363089355,1748573444940,-970.21838541,0.00022185,2]
[363089358,1748573444953,-264.825,0.00022185,2]
[363089360,1748573444964,-19693.69552738,0.00022185,2]
[363089363,1748573444979,-320.14840894,0.00022185,2]
[363089365,1748573444991,-15893.67849186,0.00022185,2]
[363089367,1748573445002,-396.43681476,0.00022185,2]
[363089369,1748573445013,-1173.97490037,0.00022185,2]
[363089372,1748573445029,-1241.83745801,0.00022185,2]
[363089375,1748573445049,-420.0,0.00021917,2]
[363089377,1748573445059,-10353.01172689,0.00022185,2]
[363089380,1748573445073,-877.02443139,0.00022185,2]
[363089386,1748573445143,-640.39437682,0.00022185,2]
[363089387,1748573445153,-487.16144789,0.00022185,2]
[363089388,1748573445164,-7500.6134112,0.00022185,2]
[363089448,1748573445803,-420.0,0.00021917,2]
[363089450,1748573445814,-420.0,0.00021917,2]
[363089452,1748573445824,-420.0,0.00021917,2]
[363089454,1748573445834,-420.0,0.00021917,2]
[363089456,1748573445844,-420.0,0.00021917,2]
[363089458,1748573445853,-43947.68822675,0.00022185,2]
[363089461,1748573445871,-5233.52839809,0.00022185,2]
[363089464,1748573445886,-2146.60412501,0.00022185,2]
[363089467,1748573445897,-33773.32428794,0.00022185,2]
[363089469,1748573445906,-1333.7580614,0.00022185,2]
[363089471,1748573445916,-543.1882676,0.00022185,2]
[363089473,1748573445926,-151.0,0.00022185,7]
[363089475,1748573445935,-151.0,0.00022185,7]
[363089477,1748573445944,-151.0,0.00022185,7]
[363089479,1748573445953,-151.0,0.00022185,7]
[363089481,1748573445963,-151.0,0.00022185,7]
[363089483,1748573445972,-990.59,0.00022186,2]
[363089485,1748573445981,-990.59,0.00022186,2]
[363089487,1748573445991,-182.246385,0.00022187,7]
[363089489,1748573446000,-152.028782,0.00022187,7]
[363089491,1748573446011,-151.0,0.00022187,7]
[363089493,1748573446020,-160.795977,0.00022187,7]
[363089495,1748573446029,-290.396748,0.00022187,7]
[363089497,1748573446041,-151.671853,0.00022187,7]
[363089499,1748573446050,-850.93490556,0.00022189,2]
[363089501,1748573446062,-2149.06509444,0.00022189,2]
[363089503,1748573446074,-420.0,0.00022189,2]